[Event "Late-Titled-Tuesday-Blitz-March-12-2024"]
[Site "Chess.com"]
[Date "2024.03.12"]
[Round "2"]
[White "AlexPapasimakopoulos"]
[Black "Quattroporte300"]
[Result "1/2-1/2"]
[WhiteElo "2699"]
[BlackElo "2483"]
[TimeControl "180+1"]
[EndTime "14:18:35 PDT"]
[Termination "Game drawn - insufficient material"]

1. d4 {[%clk 0:03:00.1]} 1... d5 {[%clk 0:02:58.8]} 2. c4 {[%clk 0:02:59.4]}
2... dxc4 {[%clk 0:02:59.3]} 3. Nf3 {[%clk 0:02:55.1]} 3... Nf6 {[%clk
0:02:59.7]} 4. e3 {[%clk 0:02:49.3]} 4... Bg4 {[%clk 0:03:00.1]} 5. Nbd2 {[%clk
0:02:48.8]} 5... e6 {[%clk 0:02:58.5]} 6. Nxc4 {[%clk 0:02:47.7]} 6... Nbd7
{[%clk 0:02:55.3]} 7. Be2 {[%clk 0:02:47.8]} 7... Be7 {[%clk 0:02:51.8]} 8. O-O
{[%clk 0:02:47.6]} 8... O-O {[%clk 0:02:52.4]} 9. h3 {[%clk 0:02:48.1]} 9... Bh5
{[%clk 0:02:51.4]} 10. b3 {[%clk 0:02:48.4]} 10... c5 {[%clk 0:02:47.6]} 11. Bb2
{[%clk 0:02:44.1]} 11... cxd4 {[%clk 0:02:46.4]} 12. Nxd4 {[%clk 0:02:44.4]}
12... Bxe2 {[%clk 0:02:46]} 13. Qxe2 {[%clk 0:02:45.3]} 13... Bc5 {[%clk
0:02:40]} 14. Rfd1 {[%clk 0:02:43.3]} 14... Qe7 {[%clk 0:02:40.2]} 15. Nb5
{[%clk 0:02:36.5]} 15... Rfd8 {[%clk 0:02:35.5]} 16. Nbd6 {[%clk 0:02:32.8]}
16... Nb6 {[%clk 0:02:28.9]} 17. Be5 {[%clk 0:02:22.3]} 17... Nxc4 {[%clk
0:02:24.1]} 18. Nxc4 {[%clk 0:02:20.9]} 18... Rd5 {[%clk 0:02:17.8]} 19. Rac1
{[%clk 0:02:04]} 19... Rad8 {[%clk 0:02:16]} 20. Rxd5 {[%clk 0:01:59]} 20...
exd5 {[%clk 0:01:48.3]} 21. Bxf6 {[%clk 0:01:55.5]} 21... Qxf6 {[%clk
0:01:49.2]} 22. Na5 {[%clk 0:01:52.1]} 22... Ba3 {[%clk 0:01:34.2]} 23. Rd1
{[%clk 0:01:15.5]} 23... b6 {[%clk 0:01:27.9]} 24. Nb7 {[%clk 0:01:08.3]} 24...
Rd7 {[%clk 0:01:27.5]} 25. Qa6 {[%clk 0:00:46.2]} 25... Bf8 {[%clk 0:01:27.3]}
26. Qxa7 {[%clk 0:00:43.1]} 26... Qe7 {[%clk 0:01:26]} 27. Qxb6 {[%clk
0:00:39.4]} 27... Rxb7 {[%clk 0:01:26.3]} 28. Qd4 {[%clk 0:00:39.2]} 28... Rd7
{[%clk 0:01:21.3]} 29. e4 {[%clk 0:00:37.4]} 29... Qc5 {[%clk 0:01:14.3]} 30.
exd5 {[%clk 0:00:25.2]} 30... Qxd4 {[%clk 0:01:13.7]} 31. Rxd4 {[%clk
0:00:26.1]} 31... Bc5 {[%clk 0:01:07.6]} 32. Rd2 {[%clk 0:00:22.2]} 32... Kf8
{[%clk 0:01:06.6]} 33. Kf1 {[%clk 0:00:21.4]} 33... Ke7 {[%clk 0:01:06.2]} 34.
Ke2 {[%clk 0:00:19.8]} 34... Kd6 {[%clk 0:01:06.7]} 35. Kd3 {[%clk 0:00:19.8]}
35... Kxd5 {[%clk 0:01:05.6]} 36. Kc3+ {[%clk 0:00:20.2]} 36... Kc6 {[%clk
0:01:05.9]} 37. Rc2 {[%clk 0:00:17.7]} 37... Kb6 {[%clk 0:00:58.3]} 38. b4
{[%clk 0:00:16.4]} 38... Bd4+ {[%clk 0:00:57.3]} 39. Kb3 {[%clk 0:00:16.6]}
39... Re7 {[%clk 0:00:52.4]} 40. a4 {[%clk 0:00:15.9]} 40... Re1 {[%clk
0:00:52]} 41. Rd2 {[%clk 0:00:15.5]} 41... Bf6 {[%clk 0:00:44.8]} 42. a5+ {[%clk
0:00:15.1]} 42... Kc7 {[%clk 0:00:42.6]} 43. Rc2+ {[%clk 0:00:10.4]} 43... Kb7
{[%clk 0:00:41.8]} 44. b5 {[%clk 0:00:10.7]} 44... Rb1+ {[%clk 0:00:41.7]} 45.
Kc4 {[%clk 0:00:11]} 45... Rb2 {[%clk 0:00:40.7]} 46. Rxb2 {[%clk 0:00:09.9]}
46... Bxb2 {[%clk 0:00:40.2]} 47. Kc5 {[%clk 0:00:10]} 47... Ba3+ {[%clk
0:00:38.5]} 48. Kd5 {[%clk 0:00:08.7]} 48... Bb4 {[%clk 0:00:38]} 49. a6+ {[%clk
0:00:09]} 49... Kb6 {[%clk 0:00:37.9]} 50. f3 {[%clk 0:00:09.2]} 50... Bd2
{[%clk 0:00:25.2]} 51. Kd6 {[%clk 0:00:08.7]} 51... Be3 {[%clk 0:00:24.6]} 52.
Ke7 {[%clk 0:00:09.2]} 52... f5 {[%clk 0:00:18.6]} 53. Kf7 {[%clk 0:00:08.9]}
53... g5 {[%clk 0:00:16]} 54. Kf6 {[%clk 0:00:08.9]} 54... Kxb5 {[%clk
0:00:11.6]} 55. a7 {[%clk 0:00:05.5]} 55... Bxa7 {[%clk 0:00:10.8]} 56. Kxg5
{[%clk 0:00:06.1]} 56... Kc6 {[%clk 0:00:07.4]} 57. Kxf5 {[%clk 0:00:06.5]}
57... Kd7 {[%clk 0:00:08.1]} 58. Kf6 {[%clk 0:00:07.1]} 58... Bd4+ {[%clk
0:00:05.9]} 59. Kf7 {[%clk 0:00:06.2]} 59... Be3 {[%clk 0:00:05.1]} 60. Kf6
{[%clk 0:00:06]} 60... h6 {[%clk 0:00:04.6]} 61. h4 {[%clk 0:00:05.1]} 61... Kd6
{[%clk 0:00:05]} 62. g4 {[%clk 0:00:04.9]} 62... Kd7 {[%clk 0:00:04]} 63. Kf5
{[%clk 0:00:02.2]} 63... Ke7 {[%clk 0:00:03.8]} 64. Kg6 {[%clk 0:00:02.7]} 64...
Ke6 {[%clk 0:00:03.3]} 65. g5 {[%clk 0:00:02.7]} 65... hxg5 {[%clk 0:00:03.5]}
66. hxg5 {[%clk 0:00:03.6]} 66... Ke5 {[%clk 0:00:03.1]} 67. Kh5 {[%clk
0:00:03.8]} 67... Kf5 {[%clk 0:00:03.4]} 68. g6 {[%clk 0:00:04]} 68... Bd4
{[%clk 0:00:03.8]} 69. Kh6 {[%clk 0:00:03.9]} 69... Kf4 {[%clk 0:00:04.5]} 70.
g7 {[%clk 0:00:04.4]} 70... Bxg7+ {[%clk 0:00:04.8]} 71. Kxg7 {[%clk 0:00:05.3]}
71... Kxf3 {[%clk 0:00:05.6]} 1/2-1/2

[Event "Late-Titled-Tuesday-Blitz-March-12-2024"]
[Site "Chess.com"]
[Date "2024.03.12"]
[Round "2"]
[White "Hrant_ChessMood"]
[Black "JaloliddinIlkhomi"]
[Result "1-0"]
[WhiteElo "2987"]
[BlackElo "2656"]
[TimeControl "180+1"]
[EndTime "14:18:45 PDT"]
[Termination "Hrant_ChessMood won by resignation"]

1. c4 {[%clk 0:02:58.8]} 1... Nf6 {[%clk 0:02:56.6]} 2. g3 {[%clk 0:02:55.3]}
2... e6 {[%clk 0:02:54.8]} 3. Bg2 {[%clk 0:02:55.3]} 3... d5 {[%clk 0:02:54.9]}
4. Nf3 {[%clk 0:02:54.8]} 4... b6 {[%clk 0:02:55.2]} 5. cxd5 {[%clk 0:02:53.7]}
5... exd5 {[%clk 0:02:55.3]} 6. d4 {[%clk 0:02:53.5]} 6... Bb7 {[%clk
0:02:54.4]} 7. Nc3 {[%clk 0:02:53.1]} 7... Bd6 {[%clk 0:02:50.7]} 8. O-O {[%clk
0:02:52.7]} 8... a6 {[%clk 0:02:49.6]} 9. Bf4 {[%clk 0:02:48.8]} 9... Bxf4
{[%clk 0:02:46.7]} 10. gxf4 {[%clk 0:02:49.7]} 10... O-O {[%clk 0:02:47]} 11. e3
{[%clk 0:02:49.7]} 11... Nbd7 {[%clk 0:02:45.3]} 12. b4 {[%clk 0:02:49.5]} 12...
Qe7 {[%clk 0:02:33.8]} 13. Qb3 {[%clk 0:02:46.4]} 13... Rab8 {[%clk 0:02:17.3]}
14. Rfc1 {[%clk 0:02:44.2]} 14... c5 {[%clk 0:02:15.6]} 15. bxc5 {[%clk
0:02:44.2]} 15... bxc5 {[%clk 0:02:16.2]} 16. Qa3 {[%clk 0:02:44.9]} 16... Rfc8
{[%clk 0:02:08.9]} 17. Na4 {[%clk 0:02:27.4]} 17... Ne4 {[%clk 0:02:00.4]} 18.
Nxc5 {[%clk 0:02:27.4]} 18... Ndxc5 {[%clk 0:01:58]} 19. dxc5 {[%clk 0:02:28.3]}
19... Rxc5 {[%clk 0:01:54.9]} 20. Rxc5 {[%clk 0:02:27.9]} 20... Qxc5 {[%clk
0:01:55.8]} 21. Qxc5 {[%clk 0:02:27.8]} 21... Nxc5 {[%clk 0:01:56.7]} 22. Rb1
{[%clk 0:02:28.4]} 22... Rc8 {[%clk 0:01:42.5]} 23. Nd4 {[%clk 0:02:28.2]} 23...
Ba8 {[%clk 0:01:34.8]} 24. Bh3 {[%clk 0:02:16.7]} 24... Rd8 {[%clk 0:01:26.5]}
25. Rb6 {[%clk 0:02:16.4]} 25... Kf8 {[%clk 0:01:23.3]} 26. Bf1 {[%clk
0:02:11.7]} 26... Bb7 {[%clk 0:01:12.3]} 27. a4 {[%clk 0:01:55.5]} 27... Rd7
{[%clk 0:01:05.8]} 28. a5 {[%clk 0:01:52.3]} 28... g6 {[%clk 0:01:03.7]} 29. h4
{[%clk 0:01:33.1]} 29... Ke7 {[%clk 0:00:58.4]} 30. h5 {[%clk 0:01:31.1]} 30...
Rd6 {[%clk 0:00:57.8]} 31. Rb1 {[%clk 0:01:30.4]} 31... Rd7 {[%clk 0:00:45.9]}
32. Rb6 {[%clk 0:01:30.1]} 32... Rd6 {[%clk 0:00:45.9]} 33. Rb4 {[%clk
0:01:30.5]} 33... Rd7 {[%clk 0:00:43.7]} 34. h6 {[%clk 0:01:25.9]} 34... Kd6
{[%clk 0:00:30.7]} 35. Bh3 {[%clk 0:01:07.1]} 35... f5 {[%clk 0:00:28.3]} 36.
Rb6+ {[%clk 0:00:57.1]} 36... Ke7 {[%clk 0:00:27.5]} 37. Bf1 {[%clk 0:00:47.2]}
37... Rd6 {[%clk 0:00:25]} 38. Rb4 {[%clk 0:00:46.9]} 38... Rd7 {[%clk
0:00:25.2]} 39. Nf3 {[%clk 0:00:41.5]} 39... d4 {[%clk 0:00:20.6]} 40. Nxd4
{[%clk 0:00:39.9]} 40... Ne6 {[%clk 0:00:20.5]} 41. Nxe6 {[%clk 0:00:36.7]}
41... Kxe6 {[%clk 0:00:21.4]} 42. Rb6+ {[%clk 0:00:37.6]} 42... Ke7 {[%clk
0:00:21.8]} 43. Kh2 {[%clk 0:00:27.5]} 43... Be4 {[%clk 0:00:20.1]} 44. Bg2
{[%clk 0:00:24.1]} 44... Bd3 {[%clk 0:00:17.7]} 45. Bb7 {[%clk 0:00:23.8]} 45...
Rc7 {[%clk 0:00:08.9]} 46. Bxa6 {[%clk 0:00:22.5]} 46... Be4 {[%clk 0:00:09.3]}
47. Bf1 {[%clk 0:00:16.2]} 47... Rc1 {[%clk 0:00:09.6]} 48. Bg2 {[%clk
0:00:16.2]} 48... Bd3 {[%clk 0:00:08]} 49. Rb7+ {[%clk 0:00:15.8]} 49... Kf6
{[%clk 0:00:08.2]} 50. Rxh7 {[%clk 0:00:16.7]} 50... Rc8 {[%clk 0:00:08.7]} 51.
Rd7 {[%clk 0:00:16.4]} 51... Bb5 {[%clk 0:00:08.3]} 52. Rd6+ {[%clk 0:00:16.5]}
52... Kf7 {[%clk 0:00:08.9]} 53. Rb6 {[%clk 0:00:17.4]} 53... Bc4 {[%clk
0:00:09.2]} 54. Rc6 {[%clk 0:00:16.9]} 54... Rxc6 {[%clk 0:00:05.5]} 55. Bxc6
{[%clk 0:00:17.8]} 55... Ba6 {[%clk 0:00:06.1]} 56. Bd5+ {[%clk 0:00:18.2]}
56... Kf6 {[%clk 0:00:06.5]} 57. Kg2 {[%clk 0:00:18.2]} 57... g5 {[%clk
0:00:06.5]} 58. fxg5+ {[%clk 0:00:18.3]} 58... Kg6 {[%clk 0:00:07.4]} 59. f4
{[%clk 0:00:18.5]} 59... Kh7 {[%clk 0:00:07.2]} 60. Kg3 {[%clk 0:00:18.7]} 60...
Kg6 {[%clk 0:00:08.1]} 61. Kh4 {[%clk 0:00:19.2]} 61... Bc8 {[%clk 0:00:08.2]}
62. Bc6 {[%clk 0:00:19.2]} 62... Ba6 {[%clk 0:00:08.3]} 63. Be8+ {[%clk
0:00:19.3]} 63... Kh7 {[%clk 0:00:09.2]} 64. Bh5 {[%clk 0:00:18.7]} 64... Bb5
{[%clk 0:00:08.7]} 65. Bd1 {[%clk 0:00:19]} 65... Ba6 {[%clk 0:00:09.2]} 66. Bc2
{[%clk 0:00:19.7]} 66... Kg6 {[%clk 0:00:10.1]} 67. Bxf5+ {[%clk 0:00:19.8]}
67... Kf7 {[%clk 0:00:10.9]} 68. g6+ {[%clk 0:00:19]} 68... Kg8 {[%clk
0:00:11.5]} 69. g7 {[%clk 0:00:19.4]} 69... Bc4 {[%clk 0:00:10]} 70. a6 {[%clk
0:00:19.5]} 1-0

[Event "Late-Titled-Tuesday-Blitz-March-12-2024"]
[Site "Chess.com"]
[Date "2024.03.12"]
[Round "2"]
[White "MikaelyanArman"]
[Black "EsmeraldasAnderson03"]
[Result "1-0"]
[WhiteElo "2828"]
[BlackElo "2574"]
[TimeControl "180+1"]
[EndTime "14:18:50 PDT"]
[Termination "MikaelyanArman won by resignation"]

1. Nf3 {[%clk 0:03:00.9]} 1... d5 {[%clk 0:02:59.9]} 2. b3 {[%clk 0:03:00.9]}
2... Bf5 {[%clk 0:02:53.5]} 3. Bb2 {[%clk 0:03:00.9]} 3... Nf6 {[%clk
0:02:54.1]} 4. e3 {[%clk 0:03:01.1]} 4... h6 {[%clk 0:02:54.4]} 5. c4 {[%clk
0:02:58.2]} 5... e6 {[%clk 0:02:53.5]} 6. Be2 {[%clk 0:02:58]} 6... Bh7 {[%clk
0:02:52.3]} 7. O-O {[%clk 0:02:57.9]} 7... Be7 {[%clk 0:02:52.9]} 8. d3 {[%clk
0:02:42.7]} 8... O-O {[%clk 0:02:51.9]} 9. Nbd2 {[%clk 0:02:41.7]} 9... c6
{[%clk 0:02:47.4]} 10. a3 {[%clk 0:02:38.2]} 10... Nbd7 {[%clk 0:02:47.7]} 11.
b4 {[%clk 0:02:38.3]} 11... Re8 {[%clk 0:02:47.4]} 12. cxd5 {[%clk 0:02:35]}
12... cxd5 {[%clk 0:02:39.1]} 13. Rc1 {[%clk 0:02:30.3]} 13... Rc8 {[%clk
0:02:39.4]} 14. Qb3 {[%clk 0:02:24.3]} 14... Rxc1 {[%clk 0:02:33]} 15. Rxc1
{[%clk 0:02:25.2]} 15... Qb8 {[%clk 0:02:33.1]} 16. Qc2 {[%clk 0:02:12.3]} 16...
Bd6 {[%clk 0:02:32.6]} 17. h3 {[%clk 0:02:09.4]} 17... e5 {[%clk 0:02:23]} 18.
e4 {[%clk 0:02:05.1]} 18... Nb6 {[%clk 0:02:12.6]} 19. exd5 {[%clk 0:01:55.2]}
19... Nfxd5 {[%clk 0:01:58.7]} 20. Ne4 {[%clk 0:01:48.4]} 20... Bf8 {[%clk
0:01:39.6]} 21. Bf1 {[%clk 0:01:42.8]} 21... Rc8 {[%clk 0:01:12.7]} 22. Qb3
{[%clk 0:01:28.3]} 22... Rxc1 {[%clk 0:01:06.4]} 23. Bxc1 {[%clk 0:01:29.2]}
23... Nf4 {[%clk 0:00:46.9]} 24. g3 {[%clk 0:01:19.8]} 24... Ne6 {[%clk
0:00:44.2]} 25. Be3 {[%clk 0:01:19.6]} 25... Nd7 {[%clk 0:00:43.8]} 26. h4
{[%clk 0:01:16.8]} 26... b6 {[%clk 0:00:42.3]} 27. Bh3 {[%clk 0:01:16.7]} 27...
Bxe4 {[%clk 0:00:33.5]} 28. dxe4 {[%clk 0:01:16]} 28... Qd6 {[%clk 0:00:32.6]}
29. Qd5 {[%clk 0:01:14.7]} 29... Nf6 {[%clk 0:00:28.4]} 30. Qxd6 {[%clk
0:00:52.6]} 30... Bxd6 {[%clk 0:00:28.1]} 31. Bxe6 {[%clk 0:00:53.3]} 31... fxe6
{[%clk 0:00:28.3]} 32. Nd2 {[%clk 0:00:54.1]} 32... Kf7 {[%clk 0:00:16.3]} 33.
f3 {[%clk 0:00:53.6]} 33... Ke7 {[%clk 0:00:16]} 34. Nc4 {[%clk 0:00:52.3]}
34... Kd7 {[%clk 0:00:15.7]} 35. b5 {[%clk 0:00:50.2]} 35... Bc7 {[%clk
0:00:13.2]} 36. a4 {[%clk 0:00:50.1]} 36... Ke7 {[%clk 0:00:13.1]} 37. Kf2
{[%clk 0:00:46.5]} 37... Nd7 {[%clk 0:00:13.7]} 38. Ke2 {[%clk 0:00:39.4]} 38...
Nc5 {[%clk 0:00:14.1]} 39. Bxc5+ {[%clk 0:00:37.8]} 39... bxc5 {[%clk 0:00:15]}
40. h5 {[%clk 0:00:35.1]} 40... Kf6 {[%clk 0:00:14.3]} 41. a5 {[%clk 0:00:35.5]}
41... Ke7 {[%clk 0:00:14.1]} 42. Kf2 {[%clk 0:00:30.8]} 42... Kd7 {[%clk
0:00:13.9]} 43. Kg2 {[%clk 0:00:30.9]} 43... Ke7 {[%clk 0:00:12.5]} 44. Kh3
{[%clk 0:00:31.3]} 44... Kd7 {[%clk 0:00:13.2]} 45. Kg4 {[%clk 0:00:31]} 45...
Ke7 {[%clk 0:00:13.2]} 46. Kh3 {[%clk 0:00:29.4]} 46... Kd7 {[%clk 0:00:13.4]}
47. Kg2 {[%clk 0:00:29]} 47... Ke7 {[%clk 0:00:14]} 48. Kf1 {[%clk 0:00:29]}
48... Kd7 {[%clk 0:00:14.6]} 49. Ke2 {[%clk 0:00:29.2]} 49... Ke7 {[%clk
0:00:15.4]} 50. Kd3 {[%clk 0:00:29.8]} 50... Kd7 {[%clk 0:00:16.1]} 51. Kc3
{[%clk 0:00:29]} 51... Ke7 {[%clk 0:00:16.2]} 52. Kb3 {[%clk 0:00:29.3]} 52...
Kd7 {[%clk 0:00:16.3]} 53. Ka4 {[%clk 0:00:29.6]} 53... Bb8 {[%clk 0:00:14.2]}
54. Ne3 {[%clk 0:00:25.1]} 54... Bc7 {[%clk 0:00:11.9]} 55. Nc4 {[%clk
0:00:15.7]} 55... Bb8 {[%clk 0:00:12.3]} 56. a6 {[%clk 0:00:16.3]} 56... Kc8
{[%clk 0:00:03.2]} 57. Na5 {[%clk 0:00:10.7]} 57... Bc7 {[%clk 0:00:02.8]} 58.
Nc6 {[%clk 0:00:10.9]} 58... Bb6 {[%clk 0:00:02.6]} 59. Nxe5 {[%clk 0:00:10.8]}
59... Bc7 {[%clk 0:00:02.3]} 60. Nc6 {[%clk 0:00:09.9]} 60... Bxg3 {[%clk
0:00:02.4]} 61. Nxa7+ {[%clk 0:00:08.8]} 61... Kc7 {[%clk 0:00:03.1]} 62. Nc6
{[%clk 0:00:08.7]} 62... Kb6 {[%clk 0:00:03.5]} 63. Kb3 {[%clk 0:00:08.3]} 63...
Bd6 {[%clk 0:00:02.2]} 64. Nd8 {[%clk 0:00:07.9]} 64... e5 {[%clk 0:00:01.4]}
65. Kc4 {[%clk 0:00:08]} 65... Be7 {[%clk 0:00:02]} 66. Ne6 {[%clk 0:00:07.5]}
66... Bd6 {[%clk 0:00:02.7]} 67. Nxg7 {[%clk 0:00:07.7]} 67... Ka7 {[%clk
0:00:03]} 68. Nf5 {[%clk 0:00:08]} 68... Bf8 {[%clk 0:00:03.5]} 69. Ne3 {[%clk
0:00:07.6]} 69... Kb6 {[%clk 0:00:04.1]} 70. Ng4 {[%clk 0:00:07.6]} 70... Bg7
{[%clk 0:00:03.4]} 71. Nf2 {[%clk 0:00:08.2]} 71... Bf8 {[%clk 0:00:03.6]} 72.
Nd1 {[%clk 0:00:07.7]} 72... Be7 {[%clk 0:00:03.5]} 73. Nc3 {[%clk 0:00:08.1]}
73... Bd8 {[%clk 0:00:03.4]} 74. Nd5+ {[%clk 0:00:08.4]} 74... Ka7 {[%clk
0:00:04.1]} 75. Kxc5 {[%clk 0:00:09]} 75... Bg5 {[%clk 0:00:04.4]} 76. Kc6
{[%clk 0:00:09]} 76... Bd8 {[%clk 0:00:03.9]} 77. Kd7 {[%clk 0:00:08]} 77... Ba5
{[%clk 0:00:04]} 78. Ke6 {[%clk 0:00:07.5]} 1-0

[Event "Late-Titled-Tuesday-Blitz-March-12-2024"]
[Site "Chess.com"]
[Date "2024.03.12"]
[Round "2"]
[White "Rud_Makarian"]
[Black "Kildepiotr"]
[Result "1-0"]
[WhiteElo "3054"]
[BlackElo "2691"]
[TimeControl "180+1"]
[EndTime "14:18:53 PDT"]
[Termination "Rud_Makarian won by resignation"]

1. d4 {[%clk 0:03:00.9]} 1... Nf6 {[%clk 0:02:44.8]} 2. c4 {[%clk 0:03:00.2]}
2... c5 {[%clk 0:02:44.6]} 3. d5 {[%clk 0:03:00.1]} 3... b5 {[%clk 0:02:44.9]}
4. cxb5 {[%clk 0:03:00.3]} 4... a6 {[%clk 0:02:44.8]} 5. e3 {[%clk 0:03:00.8]}
5... e6 {[%clk 0:02:44.3]} 6. dxe6 {[%clk 0:02:58.6]} 6... fxe6 {[%clk
0:02:44.3]} 7. Nc3 {[%clk 0:02:58.7]} 7... d5 {[%clk 0:02:44.1]} 8. Nf3 {[%clk
0:02:57.9]} 8... Bd6 {[%clk 0:02:43.9]} 9. bxa6 {[%clk 0:02:51.7]} 9... Bxa6
{[%clk 0:02:43.4]} 10. Bxa6 {[%clk 0:02:46.4]} 10... Nxa6 {[%clk 0:02:44.3]} 11.
e4 {[%clk 0:02:38.4]} 11... d4 {[%clk 0:02:13]} 12. e5 {[%clk 0:02:37.6]} 12...
dxc3 {[%clk 0:02:06.4]} 13. exd6 {[%clk 0:02:21.9]} 13... cxb2 {[%clk
0:02:01.1]} 14. Bxb2 {[%clk 0:02:21.9]} 14... Qa5+ {[%clk 0:01:53.6]} 15. Nd2
{[%clk 0:02:03.5]} 15... O-O {[%clk 0:01:01]} 16. O-O {[%clk 0:02:01.9]} 16...
Nb4 {[%clk 0:00:54.8]} 17. Nc4 {[%clk 0:01:54.4]} 17... Qa6 {[%clk 0:00:51]} 18.
Qe2 {[%clk 0:01:54.6]} 18... Rae8 {[%clk 0:00:46.3]} 19. Rfe1 {[%clk 0:01:49]}
19... Nbd5 {[%clk 0:00:42.8]} 20. g3 {[%clk 0:01:47.2]} 20... Nb6 {[%clk
0:00:39.6]} 21. Nxb6 {[%clk 0:01:44]} 21... Qxb6 {[%clk 0:00:40.5]} 22. Bxf6
{[%clk 0:01:41.8]} 22... Rxf6 {[%clk 0:00:38.4]} 23. Rad1 {[%clk 0:01:41.3]}
23... Rd8 {[%clk 0:00:34.2]} 24. d7 {[%clk 0:01:30]} 24... Qc6 {[%clk
0:00:33.2]} 25. Qc4 {[%clk 0:01:19.4]} 25... Rxd7 {[%clk 0:00:29.1]} 26. Rxd7
{[%clk 0:01:09.8]} 26... Qxd7 {[%clk 0:00:30]} 27. Qxc5 {[%clk 0:01:10]} 27...
h6 {[%clk 0:00:25.2]} 28. Qe3 {[%clk 0:00:53.7]} 28... Qa4 {[%clk 0:00:20]} 29.
a3 {[%clk 0:00:52.1]} 29... Kf7 {[%clk 0:00:19.5]} 30. Rc1 {[%clk 0:00:52.4]}
30... Qa5 {[%clk 0:00:18.8]} 31. Rc5 {[%clk 0:00:47.4]} 31... Qb6 {[%clk
0:00:17]} 32. Qc3 {[%clk 0:00:42.2]} 32... Qb1+ {[%clk 0:00:16.5]} 33. Qc1
{[%clk 0:00:42.3]} 33... Qxc1+ {[%clk 0:00:15.1]} 34. Rxc1 {[%clk 0:00:43.2]}
34... Rf5 {[%clk 0:00:15.3]} 35. a4 {[%clk 0:00:41.8]} 35... Ra5 {[%clk
0:00:14]} 36. Ra1 {[%clk 0:00:42.5]} 36... Kf6 {[%clk 0:00:14.2]} 37. Kg2 {[%clk
0:00:43]} 37... Ke5 {[%clk 0:00:14.1]} 38. Kf3 {[%clk 0:00:43.7]} 38... Kd4
{[%clk 0:00:14.5]} 39. h4 {[%clk 0:00:41.1]} 39... h5 {[%clk 0:00:13.1]} 40. g4
{[%clk 0:00:27.8]} 40... hxg4+ {[%clk 0:00:13.1]} 41. Kxg4 {[%clk 0:00:28.5]}
41... e5 {[%clk 0:00:12.3]} 42. h5 {[%clk 0:00:23.6]} 42... Kd3 {[%clk
0:00:11.9]} 43. Kg5 {[%clk 0:00:18]} 43... e4+ {[%clk 0:00:11.3]} 44. Kg6 {[%clk
0:00:18.7]} 44... Ra7 {[%clk 0:00:11.5]} 45. a5 {[%clk 0:00:18.7]} 45... Ke2
{[%clk 0:00:12]} 46. Ra2+ {[%clk 0:00:19]} 46... Kf3 {[%clk 0:00:12.5]} 47. a6
{[%clk 0:00:19.5]} 47... Kf4 {[%clk 0:00:11.8]} 48. Ra3 {[%clk 0:00:18.4]} 48...
Kg4 {[%clk 0:00:11.6]} 49. Ra4 {[%clk 0:00:11.3]} 49... Kf3 {[%clk 0:00:11.8]}
50. Ra2 {[%clk 0:00:08.8]} 50... Kf4 {[%clk 0:00:12]} 51. Ra5 {[%clk 0:00:07.1]}
51... Kg4 {[%clk 0:00:10.6]} 52. Rg5+ {[%clk 0:00:06.6]} 52... Kh4 {[%clk
0:00:10.4]} 53. Rf5 {[%clk 0:00:06.2]} 53... Kg4 {[%clk 0:00:09.5]} 54. Rf7
{[%clk 0:00:06.3]} 54... Rxa6+ {[%clk 0:00:09.6]} 55. Kxg7 {[%clk 0:00:06.1]}
55... Kxh5 {[%clk 0:00:09.9]} 56. Rf4 {[%clk 0:00:06.5]} 56... Ra2 {[%clk
0:00:08.6]} 57. Kf6 {[%clk 0:00:06.5]} 57... Ra6+ {[%clk 0:00:08.4]} 58. Ke5
{[%clk 0:00:06.7]} 58... Kg6 {[%clk 0:00:08.4]} 59. Kxe4 {[%clk 0:00:05.8]}
59... Ra4+ {[%clk 0:00:08.1]} 60. Ke5 {[%clk 0:00:06.2]} 60... Ra5+ {[%clk
0:00:08.4]} 61. Ke4 {[%clk 0:00:06.4]} 61... Ra4+ {[%clk 0:00:09]} 62. Kf3
{[%clk 0:00:07]} 62... Ra3+ {[%clk 0:00:09.4]} 63. Kg4 {[%clk 0:00:07.4]} 63...
Ra6 {[%clk 0:00:09.1]} 64. Rc4 {[%clk 0:00:06.7]} 64... Rb6 {[%clk 0:00:08.8]}
65. f4 {[%clk 0:00:06.6]} 65... Kf6 {[%clk 0:00:09]} 66. Rc5 {[%clk 0:00:05.9]}
66... Rb1 {[%clk 0:00:08.7]} 67. Rc6+ {[%clk 0:00:06.1]} 67... Kf7 {[%clk
0:00:09.2]} 68. Kg5 {[%clk 0:00:06.4]} 68... Rb5+ {[%clk 0:00:07.4]} 69. f5
{[%clk 0:00:06.9]} 69... Rb7 {[%clk 0:00:07.6]} 70. Rh6 {[%clk 0:00:06.8]} 70...
Kg7 {[%clk 0:00:06.6]} 71. Ra6 {[%clk 0:00:04.5]} 71... Rf7 {[%clk 0:00:05.7]}
72. f6+ {[%clk 0:00:02.8]} 72... Kh7 {[%clk 0:00:05.2]} 73. Re6 {[%clk
0:00:03.2]} 73... Kg8 {[%clk 0:00:04.2]} 74. Re8+ {[%clk 0:00:02.8]} 74... Kh7
{[%clk 0:00:04.3]} 75. Re7 {[%clk 0:00:03.3]} 75... Kg8 {[%clk 0:00:04]} 76. Kg6
{[%clk 0:00:04]} 76... Rf8 {[%clk 0:00:04]} 77. Rg7+ {[%clk 0:00:04.3]} 77...
Kh8 {[%clk 0:00:04.4]} 78. Rh7+ {[%clk 0:00:05]} 78... Kg8 {[%clk 0:00:04.8]}
79. f7+ {[%clk 0:00:05.7]} 1-0